[Event "Dalheimers Hus Rapid Open"]
[Site "Dalheimers Hus, Slottsskogsgatan 12, Gothenburg, Sweden"]
[Date "2024.04.14"]
[Round "3.1"]
[White "Olsson, William"]
[Black "Seo, Jung Min"]
[Result "1-0"]
[TimeControl "15 minutes + 5 seconds per move from move one."]
[WhiteTitle "FM"]
[BlackTitle "IM"]
[WhiteFideId "1741721"]
[BlackFideId "1734687"]
[WhiteElo "2159"]
[BlackElo "2450"]

1. c4 {[%clk 00:15:08]} {[%emt 00:00:02]} e5 {[%clk 00:15:09]} 2. g3 {[%clk
00:15:12]} {[%emt 00:00:01]} Nf6 {[%clk 00:15:11]} {[%emt 00:00:04]} 3. Bg2
{[%clk 00:15:14]} {[%emt 00:00:03]} c6 {[%clk 00:15:12]} {[%emt 00:00:04]} 4.
Nf3 {[%clk 00:15:18]} e4 {[%clk 00:15:16]} 5. Nd4 {[%clk 00:15:22]} d5 {[%clk
00:15:11]} {[%emt 00:00:10]} 6. d3 {[%clk 00:15:26]} Bb4+ {[%clk 00:14:31]}
{[%emt 00:00:46]} 7. Bd2 {[%clk 00:14:57]} {[%emt 00:00:34]} Bxd2+ {[%clk
00:14:33]} {[%emt 00:00:03]} 8. Qxd2 {[%clk 00:15:00]} {[%emt 00:00:01]} exd3
{[%clk 00:13:29]} {[%emt 00:01:09]} 9. Qxd3 {[%clk 00:15:04]} {[%emt 00:00:02]}
O-O {[%clk 00:13:30]} {[%emt 00:00:04]} 10. O-O {[%clk 00:14:31]} {[%emt
00:00:38]} dxc4 {[%clk 00:12:28]} {[%emt 00:01:08]} 11. Qxc4 {[%clk 00:14:34]}
{[%emt 00:00:01]} Nbd7 {[%clk 00:12:27]} {[%emt 00:00:05]} 12. Rd1 {[%clk
00:14:12]} {[%emt 00:00:27]} Nb6 {[%clk 00:12:02]} {[%emt 00:00:31]} 13. Qc2
{[%clk 00:14:10]} {[%emt 00:00:07]} Qe7 {[%clk 00:11:59]} {[%emt 00:00:08]} 14.
Nc3 {[%clk 00:14:11]} {[%emt 00:00:04]} Nbd5 {[%clk 00:10:29]} {[%emt
00:01:35]} 15. e4 {[%clk 00:12:57]} {[%emt 00:01:19]} Nxc3 {[%clk 00:10:27]}
{[%emt 00:00:08]} 16. Qxc3 {[%clk 00:12:58]} {[%emt 00:00:04]} Bg4 {[%clk
00:08:54]} {[%emt 00:01:37]} 17. Re1 {[%clk 00:13:01]} {[%emt 00:00:02]} Rfd8
{[%clk 00:08:10]} {[%emt 00:00:49]} 18. h3 {[%clk 00:12:53]} {[%emt 00:00:13]}
Be6 {[%clk 00:07:37]} {[%emt 00:00:38]} 19. Rad1 {[%clk 00:10:19]} {[%emt
00:02:38]} a5 {[%clk 00:05:00]} {[%emt 00:02:43]} 20. Nxe6 {[%clk 00:09:25]}
{[%emt 00:00:59]} Rxd1 {[%clk 00:04:48]} {[%emt 00:00:16]} 21. Rxd1 {[%clk
00:09:29]} {[%emt 00:00:02]} Qxe6 {[%clk 00:04:53]} 22. e5 {[%clk 00:09:04]}
{[%emt 00:00:29]} Nd5 {[%clk 00:04:22]} {[%emt 00:00:36]} 23. Bxd5 {[%clk
00:08:32]} {[%emt 00:00:37]} cxd5 {[%clk 00:04:27]} 24. Kg2 {[%clk 00:08:13]}
{[%emt 00:00:24]} g6 {[%clk 00:03:51]} {[%emt 00:00:41]} 25. Qd4 {[%clk
00:08:04]} {[%emt 00:00:13]} Rd8 {[%clk 00:02:07]} {[%emt 00:01:48]} 26. Rc1
{[%clk 00:07:42]} {[%emt 00:00:28]} Re8 {[%clk 00:02:04]} {[%emt 00:00:08]} 27.
Rc5 {[%clk 00:07:37]} {[%emt 00:00:11]} Qb6 {[%clk 00:01:34]} {[%emt 00:00:34]}
28. Qxd5 {[%clk 00:07:29]} {[%emt 00:00:13]} Qxb2 {[%clk 00:01:37]} {[%emt
00:00:02]} 29. Rc7 {[%clk 00:07:32]} {[%emt 00:00:02]} Rf8 {[%clk 00:01:05]}
{[%emt 00:00:38]} 30. Rxb7 {[%clk 00:07:35]} {[%emt 00:00:02]} Qe2 {[%clk
00:01:03]} {[%emt 00:00:06]} 31. Ra7 {[%clk 00:07:30]} {[%emt 00:00:12]} Qh5
{[%clk 00:00:28]} {[%emt 00:00:39]} 32. Rxa5 {[%clk 00:07:26]} {[%emt
00:00:09]} Qf5 {[%clk 00:00:32]} 33. Ra8 {[%clk 00:06:40]} {[%emt 00:00:51]}
Rxa8 {[%clk 00:00:36]} {[%emt 00:00:02]} 34. Qxa8+ {[%clk 00:06:44]} Kg7 {[%clk
00:00:40]} 35. Qd5 {[%clk 00:06:45]} {[%emt 00:00:03]} Qc2 {[%clk 00:00:36]}
{[%emt 00:00:09]} 36. h4 {[%clk 00:06:07]} {[%emt 00:00:43]} h5 {[%clk
00:00:39]} {[%emt 00:00:02]} 37. a3 {[%clk 00:05:09]} {[%emt 00:01:03]} Kf8
{[%clk 00:00:28]} {[%emt 00:00:16]} 38. e6 {[%clk 00:04:34]} {[%emt 00:00:40]}
fxe6 {[%clk 00:00:32]} {[%emt 00:00:01]} 39. Qxe6 {[%clk 00:04:38]} {[%emt
00:00:01]} Kg7 {[%clk 00:00:35]} {[%emt 00:00:02]} 40. Qd5 {[%clk 00:04:34]}
{[%emt 00:00:09]} Qa4 {[%clk 00:00:35]} {[%emt 00:00:05]} 41. Qb7+ {[%clk
00:04:29]} {[%emt 00:00:10]} Kg8 {[%clk 00:00:23]} {[%emt 00:00:15]} 42. Qb4
{[%clk 00:04:26]} {[%emt 00:00:09]} Qc6+ {[%clk 00:00:26]} {[%emt 00:00:02]} 43.
Kh2 {[%clk 00:04:30]} {[%emt 00:00:02]} Qc2 {[%clk 00:00:24]} {[%emt 00:00:07]}
44. Qd4 {[%clk 00:04:28]} {[%emt 00:00:07]} Qa2 {[%clk 00:00:16]} {[%emt
00:00:13]} 45. a4 {[%clk 00:04:32]} {[%emt 00:00:01]} Kf7 {[%clk 00:00:21]} 46.
Kg2 {[%clk 00:04:34]} {[%emt 00:00:02]} Ke6 {[%clk 00:00:24]} {[%emt 00:00:02]}
47. Qb6+ {[%clk 00:04:34]} {[%emt 00:00:05]} Kf5 {[%clk 00:00:28]} {[%emt
00:00:01]} 48. Qb5+ {[%clk 00:04:29]} {[%emt 00:00:11]} Kf6 {[%clk 00:00:32]}
49. a5 {[%clk 00:04:31]} {[%emt 00:00:03]} 1-0

[Event "Dalheimers Hus Rapid Open"]
[Site "Dalheimers Hus, Slottsskogsgatan 12, Gothenburg, Sweden"]
[Date "2024.04.14"]
[Round "3.2"]
[White "Johansson, Linus"]
[Black "Ulff, Johan"]
[Result "1-0"]
[TimeControl "15 minutes + 5 seconds per move from move one."]
[WhiteTitle "IM"]
[WhiteFideId "1711113"]
[BlackFideId "1733893"]
[WhiteElo "2427"]
[BlackElo "2123"]

1. d4 {[%clk 00:15:07]} {[%emt 00:00:02]} c5 {[%clk 00:15:07]} {[%emt
00:00:04]} 2. d5 {[%clk 00:15:10]} {[%emt 00:00:02]} g6 {[%clk 00:15:10]}
{[%emt 00:00:02]} 3. e4 {[%clk 00:15:10]} {[%emt 00:00:05]} Bg7 {[%clk
00:15:14]} 4. Ne2 {[%clk 00:15:04]} {[%emt 00:00:11]} d6 {[%clk 00:15:10]}
{[%emt 00:00:09]} 5. a4 {[%clk 00:15:00]} {[%emt 00:00:09]} b6 {[%clk
00:14:51]} {[%emt 00:00:24]} 6. Nec3 {[%clk 00:15:02]} {[%emt 00:00:02]} Nf6
{[%clk 00:14:07]} {[%emt 00:00:50]} 7. Bb5+ {[%clk 00:15:05]} {[%emt 00:00:02]}
Bd7 {[%clk 00:14:00]} {[%emt 00:00:12]} 8. Na3 {[%clk 00:15:04]} {[%emt
00:00:05]} a6 {[%clk 00:14:02]} {[%emt 00:00:04]} 9. Bd3 {[%clk 00:14:49]}
{[%emt 00:00:19]} O-O {[%clk 00:11:51]} {[%emt 00:02:16]} 10. h3 {[%clk
00:14:29]} {[%emt 00:00:26]} b5 {[%clk 00:11:27]} {[%emt 00:00:29]} 11. axb5
{[%clk 00:14:32]} {[%emt 00:00:01]} axb5 {[%clk 00:11:31]} 12. Ncxb5 {[%clk
00:14:33]} {[%emt 00:00:04]} Nxe4 {[%clk 00:11:04]} {[%emt 00:00:33]} 13. O-O
{[%clk 00:14:24]} {[%emt 00:00:13]} Nf6 {[%clk 00:07:23]} {[%emt 00:03:46]} 14.
Bc4 {[%clk 00:14:12]} {[%emt 00:00:18]} Na6 {[%clk 00:07:12]} {[%emt 00:00:16]}
15. Re1 {[%clk 00:14:08]} {[%emt 00:00:08]} Re8 {[%clk 00:07:16]} {[%emt
00:00:02]} 16. Bd2 {[%clk 00:11:41]} {[%emt 00:02:32]} Nc7 {[%clk 00:07:00]}
{[%emt 00:00:20]} 17. Nxc7 {[%clk 00:11:11]} {[%emt 00:00:36]} Qxc7 {[%clk
00:07:04]} 18. Bc3 {[%clk 00:11:15]} {[%emt 00:00:01]} Qb7 {[%clk 00:06:54]}
{[%emt 00:00:15]} 19. Qf3 {[%clk 00:11:04]} {[%emt 00:00:15]} Ra7 {[%clk
00:05:58]} {[%emt 00:01:01]} 20. Re3 {[%clk 00:11:05]} {[%emt 00:00:04]} Nh5
{[%clk 00:05:13]} {[%emt 00:00:50]} 21. Bxg7 {[%clk 00:11:00]} {[%emt
00:00:09]} Nxg7 {[%clk 00:05:17]} {[%emt 00:00:03]} 22. Rb3 {[%clk 00:10:46]}
{[%emt 00:00:19]} Qc8 {[%clk 00:05:19]} {[%emt 00:00:03]} 23. Re1 {[%clk
00:10:28]} {[%emt 00:00:22]} Nf5 {[%clk 00:05:21]} {[%emt 00:00:04]} 24. c3
{[%clk 00:10:31]} Ba4 {[%clk 00:05:19]} {[%emt 00:00:07]} 25. Rb6 {[%clk
00:09:15]} {[%emt 00:01:21]} Qc7 {[%clk 00:05:07]} {[%emt 00:00:18]} 26. Rc6
{[%clk 00:08:47]} {[%emt 00:00:32]} Bxc6 {[%clk 00:05:08]} {[%emt 00:00:04]} 27.
dxc6 {[%clk 00:08:51]} e6 {[%clk 00:02:44]} {[%emt 00:02:29]} 28. Nb5 {[%clk
00:08:52]} {[%emt 00:00:04]} Qb6 {[%clk 00:02:48]} {[%emt 00:00:01]} 29. Nxa7
{[%clk 00:08:51]} {[%emt 00:00:07]} Qxa7 {[%clk 00:02:50]} {[%emt 00:00:03]} 30.
g4 {[%clk 00:07:50]} {[%emt 00:01:05]} Ne7 {[%clk 00:02:48]} {[%emt 00:00:07]}
31. Rxe6 {[%clk 00:07:54]} {[%emt 00:00:01]} Rd8 {[%clk 00:01:25]} {[%emt
00:01:29]} 32. Rxd6 {[%clk 00:07:37]} {[%emt 00:00:21]} Nxc6 {[%clk 00:00:44]}
{[%emt 00:00:47]} 33. Qxc6 {[%clk 00:07:21]} {[%emt 00:00:20]} Rxd6 {[%clk
00:00:24]} {[%emt 00:00:25]} 34. Qxd6 {[%clk 00:07:25]} {[%emt 00:00:01]} Qa1+
{[%clk 00:00:28]} {[%emt 00:00:02]} 35. Kg2 {[%clk 00:07:28]} {[%emt 00:00:02]}
Qxb2 {[%clk 00:00:30]} {[%emt 00:00:02]} 36. Qd7 {[%clk 00:07:09]} {[%emt
00:00:24]} 1-0

[Event "Dalheimers Hus Rapid Open"]
[Site "Dalheimers Hus, Slottsskogsgatan 12, Gothenburg, Sweden"]
[Date "2024.04.14"]
[Round "3.3"]
[White "Brzezinski, Adam"]
[Black "Hellers, Ferdinand"]
[Result "0-1"]
[TimeControl "15 minutes + 5 seconds per move from move one."]
[BlackTitle "GM"]
[WhiteFideId "1710460"]
[BlackFideId "1700022"]
[WhiteElo "2111"]
[BlackElo "2410"]

1. d4 {[%clk 00:15:06]} {[%emt 00:00:03]} Nf6 {[%clk 00:15:00]} {[%emt
00:00:11]} 2. Bg5 {[%clk 00:15:07]} {[%emt 00:00:03]} Ne4 {[%clk 00:14:46]}
{[%emt 00:00:19]} 3. Bf4 {[%clk 00:15:10]} {[%emt 00:00:02]} c5 {[%clk
00:14:37]} {[%emt 00:00:15]} 4. f3 {[%clk 00:15:12]} {[%emt 00:00:03]} Qa5+
{[%clk 00:14:33]} {[%emt 00:00:09]} 5. c3 {[%clk 00:15:14]} {[%emt 00:00:04]}
Nf6 {[%clk 00:14:36]} {[%emt 00:00:02]} 6. d5 {[%clk 00:15:01]} {[%emt
00:00:18]} Qb6 {[%clk 00:14:33]} {[%emt 00:00:07]} 7. Bc1 {[%clk 00:13:29]}
{[%emt 00:01:37]} e6 {[%clk 00:14:35]} {[%emt 00:00:03]} 8. c4 {[%clk
00:12:16]} {[%emt 00:01:19]} exd5 {[%clk 00:14:35]} {[%emt 00:00:04]} 9. cxd5
{[%clk 00:12:19]} {[%emt 00:00:03]} c4 {[%clk 00:14:24]} {[%emt 00:00:16]} 10.
Nc3 {[%clk 00:10:37]} {[%emt 00:01:47]} Bc5 {[%clk 00:13:50]} {[%emt 00:00:39]}
11. e3 {[%clk 00:10:30]} {[%emt 00:00:12]} O-O {[%clk 00:13:13]} {[%emt
00:00:41]} 12. Bxc4 {[%clk 00:09:04]} {[%emt 00:01:32]} Bxe3 {[%clk 00:12:01]}
{[%emt 00:01:17]} 13. Bxe3 {[%clk 00:08:44]} {[%emt 00:00:25]} Qxe3+ {[%clk
00:12:01]} 14. Nge2 {[%clk 00:08:40]} {[%emt 00:00:13]} Re8 {[%clk 00:11:33]}
{[%emt 00:00:33]} 15. Qd3 {[%clk 00:08:13]} {[%emt 00:00:32]} Qb6 {[%clk
00:07:29]} {[%emt 00:04:08]} 16. O-O-O {[%clk 00:08:07]} {[%emt 00:00:12]} d6
{[%clk 00:07:29]} {[%emt 00:00:06]} 17. Qd4 {[%clk 00:07:00]} {[%emt 00:01:11]}
Nbd7 {[%clk 00:07:07]} {[%emt 00:00:27]} 18. Qxb6 {[%clk 00:05:34]} {[%emt
00:01:32]} Nxb6 {[%clk 00:07:09]} {[%emt 00:00:02]} 19. Bb3 {[%clk 00:05:34]}
{[%emt 00:00:05]} Bd7 {[%clk 00:05:44]} {[%emt 00:01:30]} 20. Nd4 {[%clk
00:05:07]} {[%emt 00:00:32]} a6 {[%clk 00:05:30]} {[%emt 00:00:19]} 21. Rhe1
{[%clk 00:05:01]} {[%emt 00:00:11]} Rxe1 {[%clk 00:05:22]} {[%emt 00:00:13]} 22.
Rxe1 {[%clk 00:05:04]} {[%emt 00:00:02]} Rc8 {[%clk 00:05:06]} {[%emt
00:00:22]} 23. Kd2 {[%clk 00:03:43]} {[%emt 00:01:26]} Nc4+ {[%clk 00:04:51]}
{[%emt 00:00:19]} 24. Bxc4 {[%clk 00:02:35]} {[%emt 00:01:13]} Rxc4 {[%clk
00:04:52]} {[%emt 00:00:04]} 25. Nc2 {[%clk 00:02:38]} {[%emt 00:00:02]} Kf8
{[%clk 00:03:48]} {[%emt 00:01:09]} 26. Ne3 {[%clk 00:02:27]} {[%emt 00:00:17]}
Rd4+ {[%clk 00:03:19]} {[%emt 00:00:33]} 27. Ke2 {[%clk 00:02:28]} {[%emt
00:00:04]} b5 {[%clk 00:03:02]} {[%emt 00:00:22]} 28. Rd1 {[%clk 00:02:07]}
{[%emt 00:00:27]} Rh4 {[%clk 00:02:45]} {[%emt 00:00:21]} 29. h3 {[%clk
00:01:21]} {[%emt 00:00:51]} h5 {[%clk 00:02:30]} {[%emt 00:00:20]} 30. a3
{[%clk 00:00:57]} {[%emt 00:00:30]} a5 {[%clk 00:02:28]} {[%emt 00:00:06]} 31.
Na2 {[%clk 00:00:41]} {[%emt 00:00:22]} b4 {[%clk 00:02:11]} {[%emt 00:00:21]}
32. axb4 {[%clk 00:00:37]} {[%emt 00:00:10]} axb4 {[%clk 00:02:14]} {[%emt
00:00:01]} 33. Nc1 {[%clk 00:00:34]} {[%emt 00:00:08]} b3 {[%clk 00:01:25]}
{[%emt 00:00:55]} 34. Nxb3 {[%clk 00:00:11]} {[%emt 00:00:28]} Rb4 {[%clk
00:01:29]} {[%emt 00:00:02]} 35. Nd4 {[%clk 00:00:15]} Rxb2+ {[%clk 00:01:32]}
{[%emt 00:00:02]} 36. Rd2 {[%clk 00:00:19]} Rb4 {[%clk 00:00:45]} {[%emt
00:00:52]} 37. Kf2 {[%clk 00:00:23]} {[%emt 00:00:01]} g6 {[%clk 00:00:45]}
{[%emt 00:00:04]} 38. h4 {[%clk 00:00:23]} {[%emt 00:00:06]} Kg7 {[%clk
00:00:43]} {[%emt 00:00:08]} 39. g3 {[%clk 00:00:26]} Rb1 {[%clk 00:00:39]}
{[%emt 00:00:09]} 40. Ne2 {[%clk 00:00:18]} {[%emt 00:00:14]} Rb3 {[%clk
00:00:32]} {[%emt 00:00:11]} 41. Nf4 {[%clk 00:00:19]} {[%emt 00:00:04]} Kf8
{[%clk 00:00:30]} {[%emt 00:00:07]} 42. Nc4 {[%clk 00:00:16]} {[%emt 00:00:09]}
Ne8 {[%clk 00:00:31]} {[%emt 00:00:04]} 43. Ne3 {[%clk 00:00:18]} {[%emt
00:00:03]} Rb4 {[%clk 00:00:30]} {[%emt 00:00:06]} 44. Rc2 {[%clk 00:00:16]}
{[%emt 00:00:06]} Ba4 {[%clk 00:00:30]} {[%emt 00:00:06]} 45. Rd2 {[%clk
00:00:17]} {[%emt 00:00:03]} Bb5 {[%clk 00:00:32]} {[%emt 00:00:04]} 46. Rc2
{[%clk 00:00:16]} {[%emt 00:00:05]} Ke7 {[%clk 00:00:30]} {[%emt 00:00:07]} 47.
Rd2 {[%clk 00:00:11]} {[%emt 00:00:11]} Nc7 {[%clk 00:00:24]} {[%emt 00:00:12]}
48. Rc2 {[%clk 00:00:11]} {[%emt 00:00:04]} Na6 {[%clk 00:00:24]} {[%emt
00:00:05]} 49. Rd2 {[%clk 00:00:11]} {[%emt 00:00:05]} Nc5 {[%clk 00:00:28]} 50.
Nc2 {[%clk 00:00:07]} {[%emt 00:00:09]} Rb2 {[%clk 00:00:29]} {[%emt 00:00:04]}
51. Ke3 {[%clk 00:00:10]} {[%emt 00:00:03]} Nb3 {[%clk 00:00:28]} {[%emt
00:00:05]} 52. Rf2 {[%clk 00:00:12]} {[%emt 00:00:03]} Nc5 {[%clk 00:00:27]}
{[%emt 00:00:06]} 53. Nd4 {[%clk 00:00:14]} {[%emt 00:00:03]} Rb4 {[%clk
00:00:28]} {[%emt 00:00:03]} 54. Rd2 {[%clk 00:00:18]} {[%emt 00:00:02]} Kf6
{[%clk 00:00:25]} {[%emt 00:00:07]} 55. Kf2 {[%clk 00:00:20]} {[%emt 00:00:04]}
Nd3+ {[%clk 00:00:23]} {[%emt 00:00:07]} 56. Ke3 {[%clk 00:00:10]} {[%emt
00:00:16]} Ne5 {[%clk 00:00:21]} {[%emt 00:00:06]} 57. Kf2 {[%clk 00:00:08]}
{[%emt 00:00:07]} Bd7 {[%clk 00:00:18]} {[%emt 00:00:08]} 58. Ke3 {[%clk
00:00:10]} {[%emt 00:00:03]} Ra4 {[%clk 00:00:19]} {[%emt 00:00:04]} 59. Kf2
{[%clk 00:00:12]} {[%emt 00:00:04]} Ra3 {[%clk 00:00:22]} {[%emt 00:00:02]} 60.
Rd1 {[%clk 00:00:14]} {[%emt 00:00:02]} Kg7 {[%clk 00:00:22]} {[%emt 00:00:04]}
61. Nfe2 {[%clk 00:00:16]} {[%emt 00:00:03]} Kh6 {[%clk 00:00:21]} {[%emt
00:00:07]} 62. Rc1 {[%clk 00:00:20]} {[%emt 00:00:02]} Nd3+ {[%clk 00:00:24]}
{[%emt 00:00:01]} 0-1

[Event "Dalheimers Hus Rapid Open"]
[Site "Dalheimers Hus, Slottsskogsgatan 12, Gothenburg, Sweden"]
[Date "2024.04.14"]
[Round "3.4"]
[White "Cramling, Pia"]
[Black "Zachrisson, Mattias"]
[Result "1-0"]
[TimeControl "15 minutes + 5 seconds per move from move one."]
[WhiteTitle "GM"]
[WhiteFideId "1700030"]
[BlackFideId "1708384"]
[WhiteElo "2377"]
[BlackElo "2107"]

1. d4 {[%clk 00:15:08]} {[%emt 00:00:01]} Nf6 {[%clk 00:15:09]} {[%emt
00:00:01]} 2. c4 {[%clk 00:15:11]} {[%emt 00:00:02]} g6 {[%clk 00:15:13]}
{[%emt 00:00:01]} 3. Nc3 {[%clk 00:15:15]} Bg7 {[%clk 00:15:17]} 4. e4 {[%clk
00:15:19]} {[%emt 00:00:01]} d6 {[%clk 00:15:22]} 5. h3 {[%clk 00:15:22]}
{[%emt 00:00:01]} O-O {[%clk 00:15:23]} {[%emt 00:00:05]} 6. Be3 {[%clk
00:15:26]} e5 {[%clk 00:15:23]} {[%emt 00:00:05]} 7. d5 {[%clk 00:15:29]} Nh5
{[%clk 00:14:22]} {[%emt 00:01:06]} 8. g3 {[%clk 00:15:16]} {[%emt 00:00:18]}
a5 {[%clk 00:12:49]} {[%emt 00:01:39]} 9. Be2 {[%clk 00:15:10]} {[%emt
00:00:11]} Nf6 {[%clk 00:12:53]} 10. g4 {[%clk 00:15:08]} {[%emt 00:00:06]} Ne8
{[%clk 00:12:54]} {[%emt 00:00:04]} 11. Qd2 {[%clk 00:14:15]} {[%emt 00:00:57]}
f5 {[%clk 00:12:55]} {[%emt 00:00:05]} 12. gxf5 {[%clk 00:14:18]} {[%emt
00:00:02]} gxf5 {[%clk 00:12:59]} 13. exf5 {[%clk 00:14:21]} {[%emt 00:00:02]}
Bxf5 {[%clk 00:12:57]} {[%emt 00:00:08]} 14. Bg4 {[%clk 00:14:19]} {[%emt
00:00:06]} Qd7 {[%clk 00:11:54]} {[%emt 00:01:09]} 15. Bxf5 {[%clk 00:12:40]}
{[%emt 00:01:43]} Qxf5 {[%clk 00:11:56]} {[%emt 00:00:03]} 16. Nge2 {[%clk
00:12:41]} {[%emt 00:00:03]} Nd7 {[%clk 00:10:39]} {[%emt 00:01:24]} 17. O-O-O
{[%clk 00:12:19]} {[%emt 00:00:26]} Nc5 {[%clk 00:10:24]} {[%emt 00:00:20]} 18.
Rhg1 {[%clk 00:11:10]} {[%emt 00:01:13]} Kh8 {[%clk 00:10:06]} {[%emt
00:00:24]} 19. Qc2 {[%clk 00:10:07]} {[%emt 00:01:07]} Qxc2+ {[%clk 00:09:48]}
{[%emt 00:00:24]} 20. Kxc2 {[%clk 00:10:11]} {[%emt 00:00:02]} b6 {[%clk
00:09:33]} {[%emt 00:00:20]} 21. Ng3 {[%clk 00:09:51]} {[%emt 00:00:23]} Rf3
{[%clk 00:08:43]} {[%emt 00:00:56]} 22. Kd2 {[%clk 00:08:24]} {[%emt 00:01:31]}
Rd8 {[%clk 00:07:54]} {[%emt 00:00:56]} 23. Ke2 {[%clk 00:08:14]} {[%emt
00:00:14]} Rf7 {[%clk 00:07:58]} {[%emt 00:00:02]} 24. Nce4 {[%clk 00:07:36]}
{[%emt 00:00:42]} Nxe4 {[%clk 00:07:51]} {[%emt 00:00:13]} 25. Nxe4 {[%clk
00:07:39]} {[%emt 00:00:02]} h6 {[%clk 00:06:54]} {[%emt 00:01:03]} 26. Rg6
{[%clk 00:05:24]} {[%emt 00:02:20]} Kh7 {[%clk 00:06:58]} {[%emt 00:00:01]} 27.
Rdg1 {[%clk 00:05:25]} {[%emt 00:00:04]} Rdd7 {[%clk 00:07:02]} 28. h4 {[%clk
00:04:40]} {[%emt 00:00:49]} Nf6 {[%clk 00:07:01]} {[%emt 00:00:07]} 29. Rxg7+
{[%clk 00:04:40]} {[%emt 00:00:05]} Rxg7 {[%clk 00:06:41]} {[%emt 00:00:25]} 30.
Nxf6+ {[%clk 00:04:43]} {[%emt 00:00:01]} Kh8 {[%clk 00:06:37]} {[%emt
00:00:09]} 31. Rg2 Rg5 32. Rxg5 Re7 33. Rg7 Rxg7 34. Bxh6 Rg1 35. Bd2 Rh1 36.
h5 Rh4 37. Kd3 Rh2 {[%clk 00:06:37]} 38. Be3 {[%clk 00:04:20]} Rh1 {[%clk
00:06:20]} {[%emt 00:01:11]} 39. Bd2 {[%clk 00:04:13]} {[%emt 00:00:49]} Rh2
{[%clk 00:05:20]} {[%emt 00:00:38]} 1-0

[Event "Dalheimers Hus Rapid Open"]
[Site "Dalheimers Hus, Slottsskogsgatan 12, Gothenburg, Sweden"]
[Date "2024.04.14"]
[Round "3.5"]
[White "Sigurgeirson, Brjann"]
[Black "Winsnes, Rikard"]
[Result "1/2-1/2"]
[TimeControl "15 minutes + 5 seconds per move from move one."]
[BlackTitle "IM"]
[WhiteFideId "1712497"]
[BlackFideId "1700430"]
[WhiteElo "2103"]
[BlackElo "2352"]

1. e4 {[%clk 00:15:09]} {[%emt 00:00:01]} c5 {[%clk 00:15:00]} {[%emt
00:00:10]} 2. Nf3 {[%clk 00:15:11]} {[%emt 00:00:03]} d6 {[%clk 00:15:01]}
{[%emt 00:00:04]} 3. c3 {[%clk 00:15:03]} {[%emt 00:00:13]} Nf6 {[%clk
00:14:41]} {[%emt 00:00:24]} 4. Bc4 {[%clk 00:14:29]} {[%emt 00:00:40]} Nxe4
{[%clk 00:11:27]} {[%emt 00:03:19]} 5. Qa4+ {[%clk 00:14:14]} {[%emt 00:00:20]}
Nc6 {[%clk 00:11:14]} {[%emt 00:00:18]} 6. Bxf7+ {[%clk 00:14:13]} {[%emt
00:00:07]} Kxf7 {[%clk 00:11:17]} 7. Qxe4 {[%clk 00:14:16]} {[%emt 00:00:02]}
e6 {[%clk 00:09:47]} {[%emt 00:01:35]} 8. d4 {[%clk 00:13:51]} {[%emt
00:00:29]} d5 {[%clk 00:09:27]} {[%emt 00:00:26]} 9. Qf4+ {[%clk 00:11:17]}
{[%emt 00:02:39]} Qf6 {[%clk 00:08:56]} {[%emt 00:00:35]} 10. Qc7+ {[%clk
00:10:07]} {[%emt 00:01:16]} Qe7 {[%clk 00:08:47]} {[%emt 00:00:13]} 11. Qf4+
{[%clk 00:10:01]} {[%emt 00:00:12]} Qf6 {[%clk 00:08:11]} {[%emt 00:00:42]} 12.
Qc7+ {[%clk 00:09:29]} {[%emt 00:00:37]} Qe7 {[%clk 00:06:22]} {[%emt
00:01:53]} 13. Qf4+ {[%clk 00:08:52]} {[%emt 00:00:42]} Qf6 {[%clk 00:05:40]}
1/2-1/2